bitfinex-derivatives/quotes_BTCF0:USTF0_20250828
["timestamp","ask_amount","ask_price","bid_price","bid_amount"]
[1756410226488,1.63369709,112100.0,112090.0,0.99094]
[1756410226795,2.11444471,112100.0,112090.0,1.01379]
[1756410226984,2.11444471,112100.0,112090.0,0.975]
[1756410228091,1.24264471,112100.0,112090.0,0.99094]
[1756410228390,2.11392471,112100.0,112090.0,0.99094]
[1756410229187,0.50284166,112100.0,112090.0,1.1029955]
[1756410229495,1.89462928,112100.0,112090.0,1.1029955]
[1756410230298,1.89462928,112100.0,112090.0,1.01379]
[1756410230492,1.89462928,112100.0,112090.0,1.1029952]
[1756410230687,1.53462928,112100.0,112090.0,1.1029952]
[1756410230888,0.18284166,112100.0,112090.0,1.1029952]
[1756410231087,1.05272166,112100.0,112090.0,1.1029952]
[1756410231791,1.05244166,112100.0,112090.0,1.3529952]
[1756410231989,1.02822166,112100.0,112090.0,1.3529952]
[1756410232192,1.05244166,112100.0,112090.0,1.3529952]
[1756410232693,1.53350928,112100.0,112090.0,1.3529952]
[1756410233081,1.53350928,112100.0,112090.0,1.1029952]
[1756410233288,0.66390928,112100.0,112090.0,1.1029952]
[1756410233592,1.53330928,112100.0,112090.0,1.1029952]
[1756410234091,1.05224166,112100.0,112090.0,1.1029952]
[1756410234293,1.53330928,112100.0,112090.0,1.1029952]
[1756410237093,1.53198928,112100.0,112090.0,1.1029952]
[1756410238788,1.05092166,112100.0,112090.0,1.1029952]
[1756410238988,1.53198928,112100.0,112090.0,1.1029952]
[1756410240295,1.44171178,112100.0,112090.0,1.1029952]
[1756410240493,1.53090908,112100.0,112090.0,1.1029952]
[1756410241391,1.50332084,112100.0,112090.0,1.1029952]
[1756410241596,1.50332084,112100.0,112090.0,1.0801452]
[1756410241992,1.50332084,112100.0,112090.0,1.1034252]
[1756410243597,1.50332084,112100.0,112090.0,1.0642052]
[1756410243797,1.02225322,112100.0,112090.0,1.0805352]
[1756410243998,1.50332084,112100.0,112090.0,1.1038152]
[1756410244191,1.02225322,112100.0,112090.0,1.0805352]
[1756410244397,1.50332084,112100.0,112090.0,1.1038152]
[1756410244798,1.50332084,112100.0,112090.0,1.01461]
[1756410245198,1.50332084,112100.0,112090.0,0.99133]
[1756410245895,1.86332084,112100.0,112090.0,0.99133]
[1756410246094,1.86332084,112100.0,112090.0,0.975]
[1756410246801,2.11332084,112100.0,112090.0,0.975]
[1756410247496,1.63225322,112100.0,112090.0,0.99133]
[1756410247703,1.63225322,112100.0,112090.0,1.01461]
[1756410247906,2.11332084,112100.0,112090.0,1.01461]
[1756410248497,2.11332084,112100.0,112090.0,0.99133]
[1756410249003,2.11332084,112100.0,112090.0,0.975]
[1756410250004,2.11332084,112100.0,112090.0,0.99133]
[1756410250504,2.11332084,112100.0,112090.0,1.01461]
[1756410251099,1.24632084,112100.0,112090.0,1.01461]
[1756410251404,2.07188084,112100.0,112090.0,1.01461]
[1756410251601,2.07188084,112100.0,112090.0,0.99133]
[1756410252000,2.07188084,112100.0,112090.0,0.975]
[1756410257607,1.59081322,112100.0,112090.0,0.975]
[1756410257803,2.07188084,112100.0,112090.0,0.975]
[1756410258006,2.07188084,112100.0,112090.0,0.99133]
[1756410259011,2.07188084,112100.0,112090.0,0.975]
[1756410259510,2.07188084,112100.0,112090.0,0.99133]
[1756410260409,2.07188084,112100.0,112090.0,0.975]
[1756410260708,2.07188084,112100.0,112090.0,0.99133]
[1756410260911,1.59081322,112100.0,112090.0,0.99133]
[1756410261209,2.07188084,112100.0,112090.0,0.99133]
[1756410262204,1.20632084,112100.0,112090.0,0.99133]
[1756410262410,2.06744084,112100.0,112090.0,0.99133]
[1756410262611,1.81744084,112100.0,112090.0,0.99133]
[1756410263307,0.95632084,112100.0,112090.0,0.99133]
[1756410263513,1.81684084,112100.0,112090.0,0.975]
[1756410263813,2.06684084,112100.0,112090.0,0.975]
[1756410266214,2.06572084,112100.0,112090.0,0.99133]
[1756410266411,2.06572084,112100.0,112090.0,0.975]
[1756410266915,0.95632084,112100.0,112090.0,1.01461]
[1756410267209,0.47525322,112100.0,112090.0,1.01461]
[1756410267409,1.47138144,112100.0,112090.0,1.3538158]
[1756410267610,0.96210144,112100.0,112090.0,1.26461]
[1756410267907,0.96210144,112100.0,112090.0,1.3538158]
[1756410267908,1.37031382,112100.0,112090.0,1.3538158]
[1756410268109,0.51103382,112100.0,112090.0,1.3538158]
[1756410268416,1.81600144,112100.0,112090.0,1.3538158]
[1756410268812,0.95680144,112100.0,112090.0,1.3538158]
[1756410269007,1.46588144,112100.0,112090.0,1.3538158]
[1756410269210,1.85926144,112100.0,112090.0,1.26461]
[1756410270413,1.47918144,112100.0,112090.0,1.3538158]
[1756410270614,1.78918144,112100.0,112090.0,1.3538158]
[1756410273120,1.78918144,112100.0,112090.0,1.01461]
[1756410275208,0.93018144,112100.0,112090.0,1.01461]
[1756410275417,1.78722144,112100.0,112090.0,1.01461]
[1756410276220,1.80350144,112100.0,112090.0,0.99133]
[1756410276720,2.05350144,112100.0,112090.0,0.9907]
[1756410277321,1.19646144,112100.0,112090.0,1.01379]
[1756410277520,1.32147382,112100.0,112090.0,1.01379]
[1756410277718,1.80266144,112100.0,112090.0,1.01379]
[1756410280318,1.80266144,112100.0,112090.0,0.9907]
[1756410280523,1.32159382,112100.0,112090.0,0.9907]
[1756410280822,1.80266144,112100.0,112090.0,0.9907]
[1756410285025,1.80266144,112100.0,112090.0,1.01379]
[1756410285225,0.94646144,112100.0,112090.0,1.01379]
[1756410285424,1.80134144,112100.0,112090.0,1.01379]
[1756410286020,0.46539382,112100.0,112090.0,1.01379]
[1756410286213,0.33653592,112100.0,112090.0,1.83406422]
[1756410286414,0.86236,112100.0,112090.0,1.83406422]
[1756410286617,0.86232,112100.0,112090.0,1.83406422]
[1756410287018,1.76852244,112110.0,112100.0,0.1279886]
[1756410287214,2.55209361,112110.0,112100.0,0.85905622]
[1756410287418,0.85533361,112110.0,112100.0,0.85905622]
[1756410287919,0.85533361,112110.0,112100.0,0.3779886]
[1756410288112,1.33640123,112110.0,112100.0,0.3779886]
[1756410288317,0.86033361,112110.0,112100.0,0.3779886]
[1756410288521,0.86233361,112110.0,112100.0,0.3779886]
[1756410288720,1.34340123,112110.0,112100.0,0.3779886]
[1756410289118,1.35968123,112110.0,112100.0,0.3779886]
[1756410289318,1.44887183,112110.0,112100.0,0.3779886]
[1756410289918,1.47244183,112110.0,112100.0,0.03879]
[1756410291824,0.99137421,112110.0,112100.0,0.03879]
[1756410292022,1.47244183,112110.0,112100.0,0.03879]
[1756410293730,0.99137421,112110.0,112100.0,0.03879]
[1756410294027,1.38265123,112110.0,112100.0,0.1279887]
[1756410294229,1.47184193,112110.0,112100.0,0.1279887]
[1756410294527,1.54292214,112110.0,112100.0,0.1279887]
[1756410295436,1.54264214,112110.0,112100.0,0.1279887]
[1756410297019,0.20725452,112110.0,112100.0,0.1279887]
[1756410297225,0.94805382,112110.0,112100.0,0.1279887]
[1756410297427,0.94805382,112110.0,112100.0,0.85905632]
[1756410297428,0.86165361,112110.0,112100.0,0.85905632]
[1756410298235,0.87793361,112110.0,112100.0,0.85905632]
[1756410298535,0.87793361,112110.0,112100.0,0.3779887]
[1756410300229,0.87793361,112110.0,112100.0,0.85905632]
[1756410300230,0.00713361,112110.0,112100.0,0.85905632]
[1756410301433,0.00213361,112110.0,112100.0,0.85905632]
[1756410301932,0.00013361,112110.0,112100.0,0.85905632]
[1756410302525,0.00013361,112110.0,112100.0,0.87747388]
[1756410303829,0.48157,112130.0,112120.0,0.1048432]
[1756410304039,0.5056,112130.0,112120.0,0.60924082]
[1756410304237,0.5056,112130.0,112120.0,0.62711415]
[1756410304833,1.07584332,112130.0,112120.0,0.14604703]
[1756410305034,0.98666762,112130.0,112120.0,0.14604703]
[1756410305334,1.07584332,112130.0,112120.0,0.14604703]
[1756410305640,0.5967757,112130.0,112120.0,0.14604703]
[1756410305841,1.07784332,112130.0,112120.0,0.14604703]
[1756410306241,1.07984332,112130.0,112120.0,0.14604703]
[1756410306643,1.32984332,112130.0,112120.0,0.01787333]
[1756410306935,1.33084332,112130.0,112120.0,0.10705703]
[1756410307138,0.8497757,112130.0,112120.0,0.12271703]
[1756410307344,1.33084332,112130.0,112120.0,0.12271703]
[1756410308040,0.8497757,112130.0,112120.0,0.12271703]
[1756410308241,1.33084332,112130.0,112120.0,0.12271703]
[1756410308742,0.8497757,112130.0,112120.0,0.12271703]
[1756410309043,1.14792,112130.0,112120.0,0.14604703]
[1756410309237,0.89792,112130.0,112120.0,0.62711465]
[1756410309439,0.89792,112130.0,112120.0,0.14604703]
[1756410309644,0.9870957,112130.0,112120.0,0.14604703]
[1756410309840,1.47816332,112130.0,112120.0,0.12271703]
[1756410310043,1.83516332,112130.0,112120.0,0.03353333]
[1756410310342,2.08716332,112130.0,112120.0,0.01787333]
[1756410310541,0.0404,112120.0,112110.0,0.1281786]
[1756410311342,0.1295837,112120.0,112110.0,0.1048486]
[1756410311536,0.1295837,112120.0,112110.0,0.0891886]
[1756410311744,0.1325837,112120.0,112110.0,0.1048486]
[1756410312242,0.0434,112120.0,112110.0,0.60924622]
[1756410312945,0.87405,112120.0,112110.0,0.60924622]
[1756410313339,0.89808,112120.0,112110.0,0.60924622]
[1756410313547,0.89608,112120.0,112110.0,0.60924622]
[1756410313848,0.85668,112120.0,112110.0,0.85924622]
[1756410314039,0.85568,112120.0,112110.0,0.85924622]
[1756410314240,0.87205,112120.0,112110.0,0.85924622]
[1756410314636,0.01937,112120.0,112110.0,0.85924622]
[1756410314838,0.003,112120.0,112110.0,0.85924622]
[1756410315744,0.002,112120.0,112110.0,0.85924622]
[1756410316751,0.86821,112130.0,112120.0,0.1281755]
[1756410316943,0.86821,112130.0,112120.0,0.60924312]
[1756410316944,0.85184,112130.0,112120.0,0.60924312]
[1756410317144,0.01637,112130.0,112120.0,0.60924312]
[1756410317851,0.01837,112130.0,112120.0,0.60924312]
[1756410318256,0.0434,112130.0,112120.0,0.60924312]
[1756410318557,0.0434,112130.0,112120.0,0.1281755]
[1756410318755,0.0434,112130.0,112120.0,0.60924312]
[1756410318946,0.0434,112130.0,112120.0,0.1281755]
[1756410319150,0.61364512,112130.0,112120.0,0.1048455]
[1756410319552,0.1325775,112130.0,112120.0,0.1048455]
[1756410319754,0.1325775,112130.0,112120.0,0.1281755]
[1756410319956,0.0434,112130.0,112120.0,0.1281755]
[1756410323457,0.89556,112130.0,112120.0,0.1281755]
[1756410323756,0.89564,112130.0,112120.0,0.60924312]
[1756410323949,0.89564,112130.0,112120.0,0.1281755]
[1756410324452,0.89564,112130.0,112120.0,0.60924312]
[1756410325750,0.9848202,112130.0,112120.0,0.60924312]
[1756410325953,0.9848202,112130.0,112120.0,0.1281755]
[1756410326453,1.71588782,112130.0,112120.0,0.0891882]
[1756410326656,1.71588782,112130.0,112110.0,0.50439762]
[1756410326657,0.1295882,112120.0,112110.0,0.1048523]
[1756410326852,0.1295882,112120.0,112110.0,0.1281823]
[1756410327053,0.1295882,112120.0,112110.0,0.60924992]
[1756410327254,0.89156,112120.0,112110.0,0.60924992]
[1756410327450,0.9807482,112120.0,112110.0,0.60924992]
[1756410328060,0.89156,112120.0,112110.0,0.60924992]
[1756410328955,0.9807482,112120.0,112110.0,0.60924992]
[1756410329754,0.9827482,112120.0,112110.0,0.60924992]
[1756410330259,0.89356,112120.0,112110.0,0.60924992]
[1756410330552,0.89656,112120.0,112110.0,0.60924992]
[1756410331174,0.0454,112120.0,112110.0,0.60924992]
[1756410331468,0.8203,112120.0,112110.0,0.60924992]
[1756410331762,0.005,112120.0,112110.0,0.85924992]
[1756410332164,0.003,112120.0,112110.0,0.85924992]
[1756410332366,0.004,112120.0,112110.0,0.85924992]
[1756410332960,0.003,112120.0,112110.0,0.85924992]
[1756410333561,0.59374,112130.0,112120.0,0.1278278]
[1756410333775,0.59374,112130.0,112120.0,0.60889542]
[1756410334068,0.01646,112130.0,112120.0,0.60889542]
[1756410334968,0.01746,112130.0,112120.0,0.60889542]
[1756410335164,0.01746,112130.0,112120.0,0.58555542]
[1756410335165,0.04072,112130.0,112120.0,0.58555542]
[1756410335364,0.04272,112130.0,112120.0,0.1044878]
[1756410335867,0.04272,112130.0,112120.0,0.1278278]
[1756410336068,0.1318999,112130.0,112120.0,0.1278278]
[1756410337271,0.04272,112130.0,112120.0,0.60889542]
[1756410337666,0.1319,112130.0,112120.0,0.60889542]
[1756410338171,0.1319,112130.0,112120.0,0.1278278]
[1756410342375,0.04272,112130.0,112120.0,0.1278278]
[1756410342576,0.89084,112130.0,112120.0,0.60889542]
[1756410342771,0.9800195,112130.0,112120.0,0.60889542]
[1756410345679,0.1318995,112130.0,112120.0,0.60889542]
[1756410345880,0.9798995,112130.0,112120.0,0.60889542]
[1756410346476,0.04272,112130.0,112120.0,0.60889542]
[1756410346676,0.003,112130.0,112120.0,0.85889542]
[1756410346877,0.003,112130.0,112120.0,1.35810314]
[1756410347078,0.003,112130.0,112120.0,1.36703253]
[1756410348076,2.5611,112150.0,112140.0,0.1278115]
[1756410348377,2.58436,112150.0,112140.0,0.60887912]
[1756410349673,0.1288915,112140.0,112130.0,0.1278124]
[1756410349873,0.1288915,112140.0,112130.0,0.60888002]
[1756410350380,0.01646,112140.0,112130.0,0.60888002]
[1756410350579,0.1288915,112140.0,112130.0,0.1278195]
[1756410350982,0.1288915,112140.0,112130.0,0.60888712]
[1756410351785,0.1288915,112140.0,112130.0,0.1278195]
[1756410351979,0.1288915,112140.0,112130.0,0.60888712]
[1756410352780,0.03972,112140.0,112130.0,0.60888712]
[1756410353184,0.01646,112140.0,112130.0,0.60888712]
[1756410353686,0.01746,112140.0,112130.0,0.60888712]
[1756410354780,0.1298916,112140.0,112130.0,0.1278195]
[1756410355381,0.61095922,112140.0,112130.0,0.1278195]
[1756410355782,0.1298916,112140.0,112130.0,0.1278195]
[1756410355983,0.1298916,112140.0,112130.0,0.60888712]
[1756410356981,0.1298916,112140.0,112130.0,0.1278195]
[1756410357490,0.1298916,112140.0,112130.0,0.0153]
[1756410358792,0.1298916,112140.0,112130.0,0.1278195]
[1756410360279,0.1298916,112140.0,112130.0,0.0153]
[1756410360486,0.1298916,112140.0,112130.0,0.1288988]
[1756410360687,0.9797716,112140.0,112130.0,0.60996642]
[1756410360879,0.9798916,112140.0,112130.0,0.60996642]
[1756410362299,0.04072,112140.0,112130.0,0.60996642]
[1756410362590,0.86738,112140.0,112130.0,0.85996642]
[1756410362790,0.9565509,112140.0,112130.0,0.85996642]
[1756410363088,0.9795109,112140.0,112130.0,0.85996642]
[1756410363987,0.9795109,112140.0,112130.0,0.1288988]
[1756410364189,0.9795109,112140.0,112130.0,0.60996642]
[1756410364691,0.8905,112140.0,112130.0,0.60996642]
[1756410364894,0.9796708,112140.0,112130.0,0.1288988]
[1756410365191,0.9796708,112140.0,112130.0,0.60996642]
[1756410366697,0.9796708,112140.0,112130.0,0.1288988]
[1756410366893,0.9796708,112140.0,112130.0,0.60996642]
[1756410370296,0.9796708,112140.0,112130.0,0.1288988]
[1756410370593,0.9796708,112140.0,112130.0,0.60996642]
[1756410371294,0.04042,112140.0,112130.0,0.60996642]
[1756410371488,0.8661,112140.0,112130.0,0.60996642]
[1756410371690,0.88906,112140.0,112130.0,0.60996642]
[1756410371994,0.8661,112140.0,112130.0,0.85996642]
[1756410373085,0.88906,112140.0,112130.0,0.85996642]
[1756410374898,0.04042,112140.0,112130.0,0.85996642]
[1756410375199,0.88878,112140.0,112130.0,0.85996642]
[1756410377598,0.88818,112140.0,112130.0,0.85996642]
[1756410377904,0.86522,112140.0,112130.0,0.85996642]
[1756410378397,0.86502,112140.0,112130.0,0.85996642]
[1756410378997,0.88798,112140.0,112130.0,0.85996642]
[1756410379605,0.88758,112140.0,112130.0,0.85996642]
[1756410381400,0.04042,112140.0,112130.0,0.85996642]
[1756410381714,0.59924112,112160.0,112150.0,0.0891629]
[1756410381715,0.02296,112160.0,112150.0,0.0891629]
[1756410381915,0.88573,112160.0,112150.0,0.61125052]
[1756410382515,0.88573,112160.0,112150.0,0.1301829]
[1756410382817,0.88573,112160.0,112150.0,0.61125052]
[1756410383018,0.88873,112160.0,112150.0,0.61125052]
[1756410383416,0.89073,112160.0,112150.0,0.61125052]
[1756410383721,0.88873,112160.0,112150.0,0.61125052]
[1756410383919,0.88673,112160.0,112150.0,0.61125052]
[1756410384719,0.88873,112160.0,112150.0,0.61125052]
[1756410385721,0.04205,112160.0,112150.0,0.61125052]
[1756410385922,0.88989,112160.0,112150.0,0.61125052]
[1756410386423,0.88789,112160.0,112150.0,0.61125052]
[1756410387922,0.04005,112160.0,112150.0,0.61125052]
[1756410388125,0.01709,112160.0,112150.0,0.86125052]
[1756410388324,0.86449,112160.0,112150.0,0.3801829]
[1756410388520,0.88745,112160.0,112150.0,0.86125052]
[1756410388822,0.86449,112160.0,112150.0,0.86125052]
[1756410389017,0.001,112160.0,112150.0,0.86125052]
[1756410389323,0.8474,112170.0,112160.0,0.0891555]
[1756410389521,2.60243964,112180.0,112170.0,0.1301675]
[1756410389726,2.60243964,112180.0,112170.0,0.61123512]
[1756410389920,0.90635964,112180.0,112170.0,0.61123512]
[1756410391115,0.90611964,112180.0,112170.0,0.61123512]
[1756410392125,0.90711964,112180.0,112170.0,0.61123512]
[1756410393028,0.88415964,112180.0,112170.0,0.61123512]
[1756410393231,0.90905964,112180.0,112170.0,0.61123512]
[1756410394421,0.91005964,112180.0,112170.0,0.61123512]
[1756410394926,0.90905964,112180.0,112170.0,0.61123512]
[1756410395833,0.91005964,112180.0,112170.0,0.61123512]
[1756410397028,0.99919924,112180.0,112170.0,0.0891475]
[1756410397628,0.99919924,112180.0,112170.0,0.1057275]
[1756410398421,1.24919924,112180.0,112170.0,0.0891475]
[1756410398627,1.16005964,112180.0,112170.0,0.0891475]
[1756410398819,1.16005964,112180.0,112170.0,0.1057275]
[1756410399630,0.06265964,112180.0,112170.0,0.61093512]
[1756410399830,0.90845964,112180.0,112170.0,0.61093512]
[1756410400030,0.06265964,112180.0,112170.0,0.61093512]
[1756410400222,0.03775964,112180.0,112170.0,0.61093512]
[1756410400428,0.02166964,112180.0,112170.0,0.86093512]
[1756410401536,0.02066964,112180.0,112170.0,0.86093512]
[1756410401720,0.01966964,112180.0,112170.0,0.86093512]
[1756410404835,0.01966964,112180.0,112170.0,1.70593512]
[1756410405137,0.03993,112200.0,112190.0,0.04072]
[1756410405331,0.01503,112200.0,112190.0,0.52178762]
[1756410405732,0.01503,112200.0,112190.0,0.62896624]
[1756410406140,0.88473,112210.0,112200.0,0.1298436]
[1756410406436,0.8448,112210.0,112200.0,1.09197884]
[1756410406643,0.8697,112210.0,112200.0,1.09197884]
[1756410406936,0.88473,112210.0,112200.0,0.61091122]
[1756410408637,0.01503,112210.0,112200.0,1.09197884]
[1756410408938,0.03993,112220.0,112210.0,0.1298356]
[1756410409239,0.03993,112220.0,112210.0,0.61090322]
[1756410409436,0.28993,112220.0,112210.0,0.61090322]
[1756410409634,0.28993,112220.0,112210.0,0.1298356]
[1756410409838,0.28993,112220.0,112210.0,0.61090322]
[1756410410632,0.29293,112220.0,112210.0,0.61090322]
[1756410411739,0.29393,112220.0,112210.0,0.61090322]
[1756410412842,0.29393,112220.0,112210.0,0.1298356]
[1756410413038,0.29393,112220.0,112210.0,0.61090322]
[1756410413241,0.04393,112220.0,112210.0,0.61090322]
[1756410413843,0.04093,112220.0,112210.0,0.61090322]
[1756410414042,0.04293,112220.0,112210.0,0.61090322]
[1756410415238,0.88905,112220.0,112210.0,0.61090322]
[1756410416945,0.01803,112220.0,112210.0,0.61090322]
[1756410417249,0.003,112220.0,112210.0,0.86090322]
[1756410420439,0.0191,112220.0,112210.0,0.86090322]
[1756410420647,0.0191,112220.0,112210.0,0.3798356]
[1756410420850,0.003,112220.0,112210.0,0.86090322]
[1756410421145,0.0191,112220.0,112210.0,0.86090322]
[1756410421646,0.03885,112250.0,112240.0,0.1293919]
[1756410421846,0.06528085,112250.0,112240.0,0.61045952]
[1756410423139,0.06528085,112250.0,112240.0,0.1293919]
[1756410423333,0.06528085,112250.0,112240.0,0.61045952]
[1756410423643,0.07028085,112250.0,112240.0,0.61045952]
[1756410423841,0.07428085,112250.0,112240.0,0.61045952]
[1756410424350,0.16336475,112250.0,112240.0,0.61045952]
[1756410425843,0.07428085,112250.0,112240.0,0.61045952]
[1756410426249,0.16336485,112250.0,112240.0,0.61045952]
[1756410426648,0.16336485,112250.0,112240.0,0.1293919]
[1756410426851,0.89443247,112250.0,112240.0,0.1056819]
[1756410427345,0.127942,112240.0,112230.0,0.14712923]
[1756410427550,0.90940085,112240.0,112230.0,0.62819685]
[1756410428348,0.99849275,112240.0,112230.0,0.14712923]
[1756410428745,0.99849275,112240.0,112230.0,0.62819685]
[1756410428947,0.99849275,112240.0,112230.0,0.14712923]
[1756410429244,1.00149275,112240.0,112230.0,0.62819685]
[1756410429854,1.00449275,112240.0,112230.0,0.62819685]
[1756410435049,1.00449275,112240.0,112230.0,0.03432203]
[1756410435050,1.48556037,112240.0,112230.0,0.03432203]
[1756410435253,1.73556037,112240.0,112230.0,0.01773203]
[1756410435753,0.03885,112220.0,112210.0,0.13055153]
[1756410436051,0.14792986,112210.0,112200.0,0.1294205]
[1756410436254,0.17421991,112210.0,112200.0,0.1294205]
[1756410436645,0.17421991,112210.0,112200.0,0.61048812]
[1756410437054,0.17421991,112210.0,112200.0,0.1294205]
[1756410437251,0.17421991,112210.0,112200.0,0.61048812]
[1756410437555,0.17421991,112210.0,112200.0,0.1294205]
[1756410438447,0.66433672,112210.0,112200.0,0.1057136]
[1756410438653,0.66433672,112210.0,112200.0,0.1294236]
[1756410438852,0.1832691,112210.0,112200.0,0.1294236]
[1756410439059,0.1852691,112210.0,112200.0,0.1294236]
[1756410439451,0.15897905,112210.0,112200.0,0.1294236]
[1756410439956,0.99272986,112210.0,112200.0,0.1294236]
[1756410440356,0.15292986,112210.0,112200.0,0.1294236]
[1756410440558,0.99532986,112210.0,112200.0,0.1294236]
[1756410441052,0.99332986,112210.0,112200.0,0.1294236]
[1756410441359,0.99632986,112210.0,112200.0,0.1294236]
[1756410442155,0.15392986,112210.0,112200.0,0.1294236]
[1756410442457,0.99584986,112210.0,112200.0,0.1294236]
[1756410442756,1.0048499,112210.0,112200.0,0.1294236]
[1756410443855,1.0038499,112210.0,112200.0,0.1294236]
[1756410444357,1.0028499,112210.0,112200.0,0.1294236]
[1756410444756,0.99340986,112210.0,112200.0,0.1294236]
[1756410445158,0.99340986,112210.0,112200.0,0.61049122]
[1756410445463,0.99540986,112210.0,112200.0,0.61049122]
[1756410445851,1.00419723,112210.0,112200.0,0.61049122]
[1756410446660,1.00119723,112210.0,112200.0,0.61049122]
[1756410446957,1.00319723,112210.0,112200.0,0.61049122]
[1756410447259,1.00219723,112210.0,112200.0,0.61049122]
[1756410448462,1.00219723,112210.0,112200.0,0.1294236]
[1756410448757,1.00143723,112210.0,112200.0,0.61049122]
[1756410450554,0.16071723,112210.0,112200.0,0.61049122]
[1756410450858,1.00143723,112210.0,112200.0,0.61049122]
[1756410452561,0.15192976,112210.0,112200.0,0.61049122]
[1756410452760,0.004,112210.0,112200.0,1.34155884]
[1756410453765,0.002,112210.0,112200.0,1.34155884]
[1756410454764,0.001,112210.0,112200.0,1.34155884]
[1756410455457,0.01604,112210.0,112200.0,0.3794236]
[1756410455660,0.01604,112210.0,112200.0,0.86049122]
[1756410455860,0.01504,112210.0,112200.0,0.86924107]
[1756410456166,0.01504,112210.0,112200.0,0.3794236]
[1756410456358,0.01504,112210.0,112200.0,0.86049122]
[1756410456559,0.01504,112210.0,112200.0,0.3794236]
[1756410456758,0.01504,112210.0,112200.0,0.86049122]
[1756410456960,0.9691079,112220.0,112210.0,0.1284957]
[1756410457159,0.9691079,112220.0,112210.0,0.60956332]
[1756410457771,0.03928,112220.0,112210.0,0.60956332]
[1756410457968,0.87996,112220.0,112210.0,0.60956332]
[1756410458164,0.88096,112220.0,112210.0,0.60956332]
[1756410458670,0.88196,112220.0,112210.0,0.60956332]
[1756410459471,0.04128,112220.0,112210.0,0.60956332]
[1756410459667,0.88196,112220.0,112210.0,0.60956332]
[1756410460268,0.9710677,112220.0,112210.0,0.1284957]
[1756410460471,0.0891157,112210.0,112200.0,0.1284978]
[1756410460669,0.1283957,112210.0,112200.0,0.60956542]
[1756410461267,0.1283957,112210.0,112200.0,0.1284978]
[1756410461467,0.1283957,112210.0,112200.0,0.60956542]
[1756410461874,0.87992,112210.0,112200.0,0.60956542]
[1756410462075,0.03928,112210.0,112200.0,0.60956542]
[1756410462269,0.87992,112210.0,112200.0,0.60956542]
[1756410462474,0.9690357,112210.0,112200.0,0.1284978]
[1756410462674,0.9690357,112210.0,112200.0,0.60956542]
[1756410465179,0.87988,112210.0,112200.0,0.60956542]
[1756410467984,0.87988,112210.0,112200.0,0.1284978]
[1756410468189,0.9689957,112210.0,112200.0,0.1284978]
[1756410468390,0.9689957,112210.0,112200.0,0.60956542]
[1756410469787,0.03928,112210.0,112200.0,0.60956542]
[1756410470090,0.8556,112210.0,112200.0,0.85956542]
[1756410470478,0.01504,112210.0,112200.0,0.85956542]
[1756410470892,0.87984,112220.0,112210.0,0.1284956]
[1756410471191,0.87984,112220.0,112210.0,0.60956322]
[1756410471484,0.03928,112220.0,112210.0,0.60956322]
[1756410471689,0.87984,112220.0,112210.0,0.1284956]
[1756410471988,0.87984,112220.0,112210.0,0.60956322]
[1756410472188,0.9699477,112220.0,112210.0,0.1284956]
[1756410472390,0.9699477,112220.0,112210.0,0.60956322]
[1756410472594,0.9699477,112220.0,112210.0,0.1284956]
[1756410472784,0.9699477,112220.0,112210.0,0.60956322]
[1756410473184,0.9709477,112220.0,112210.0,0.60956322]
[1756410473683,0.9709477,112220.0,112210.0,0.1041856]
[1756410473893,1.70201532,112220.0,112210.0,0.0891156]
[1756410474995,1.70201532,112220.0,112210.0,0.1041856]
[1756410475193,1.2209477,112220.0,112210.0,0.1284956]
[1756410477094,1.2209477,112220.0,112210.0,0.1041856]
[1756410480289,1.2209477,112220.0,112210.0,0.0891156]
[1756410480290,1.70201532,112220.0,112210.0,0.0891156]
[1756410482198,1.70201532,112220.0,112210.0,0.1047756]
[1756410482392,1.45201532,112220.0,112210.0,0.01566]
[1756410482592,1.45201532,112220.0,112200.0,0.1047835]
[1756410482593,0.1044857,112210.0,112200.0,0.1047835]
[1756410482791,0.14830788,112210.0,112200.0,0.1047835]
[1756410485596,0.14830788,112210.0,112200.0,0.0891235]
[1756410485792,0.1288125,112200.0,112190.0,0.10717192]
[1756410486096,0.1288206,112190.0,112180.0,0.1047986]
[1756410486291,0.14900319,112190.0,112180.0,0.1047986]
[1756410486493,0.1045086,112180.0,112170.0,0.1295704]
[1756410486795,0.9692686,112180.0,112170.0,0.1295704]
[1756410487593,0.9692686,112180.0,112170.0,0.61063802]
[1756410487789,0.9672686,112180.0,112170.0,0.61063802]
[1756410488598,0.9662686,112180.0,112170.0,0.61063802]
[1756410488801,0.9662686,112180.0,112170.0,0.61463802]
[1756410489098,0.9662686,112180.0,112170.0,0.1335704]
[1756410489301,0.9662686,112180.0,112170.0,0.1118004]
[1756410490002,0.9662686,112180.0,112170.0,0.1365704]
[1756410490504,0.9662686,112180.0,112170.0,0.004]
[1756410490505,1.69933622,112180.0,112170.0,0.004]
[1756410491301,0.1045162,112170.0,112160.0,0.14913766]
[1756410491503,0.1288362,112170.0,112160.0,0.14913766]
[1756410491801,0.14894434,112170.0,112160.0,0.14913766]
[1756410492499,0.2260704,112170.0,112160.0,0.14913766]
[1756410496798,0.2260704,112170.0,112160.0,0.63020528]
[1756410496998,0.9530442,112170.0,112160.0,0.88020528]
[1756410497300,0.9345856,112170.0,112160.0,0.88020528]
[1756410497503,0.9742756,112170.0,112160.0,0.39913766]
[1756410497808,0.9742756,112170.0,112160.0,0.88020528]
[1756410498401,0.88313,112170.0,112160.0,0.88020528]
[1756410498600,0.88113,112170.0,112160.0,0.88020528]
[1756410499006,0.001,112170.0,112160.0,0.88020528]
[1756410499404,0.001,112170.0,112160.0,1.3612729]
[1756410499702,0.001,112170.0,112160.0,0.88020528]
[1756410501009,0.001,112170.0,112160.0,1.3612729]
[1756410501411,0.001,112170.0,112160.0,0.39913766]
[1756410501704,0.001,112170.0,112160.0,1.3612729]
[1756410501904,0.001,112170.0,112160.0,0.88020528]
[1756410504004,0.01637,112170.0,112160.0,0.88020528]
[1756410505810,0.001,112170.0,112160.0,0.88020528]
[1756410506899,0.0901459,112170.0,112160.0,0.88020528]
[1756410507104,0.1055159,112170.0,112160.0,0.88020528]
[1756410509613,0.1298359,112170.0,112160.0,0.14913766]
[1756410509813,0.1298359,112170.0,112160.0,0.63020528]
[1756410511210,0.1298359,112170.0,112160.0,0.63027535]
[1756410513211,0.14942714,112170.0,112160.0,0.14920773]
[1756410513412,0.14942714,112170.0,112160.0,0.63027535]
[1756410513614,0.14942714,112170.0,112160.0,0.14920773]
[1756410513815,0.14942714,112170.0,112160.0,0.63027535]
[1756410515714,0.14942714,112170.0,112160.0,0.06005743]
[1756410515915,0.46900027,112170.0,112160.0,0.06005743]
[1756410516512,0.46900027,112170.0,112160.0,0.14921133]